Cogmind - Beta 13 @@@ ROGUE MODE // 2024.07.09 @ 00:31:49 Player: Minty Result: Destroyed by 9X-WW6(R) with Subdweller Machine Gun Performance ------------- Evolutions (0) 0 Regions Visited (2) 400 Robots Destroyed (42) 210 Value Destroyed (1093) 1093 Prototype IDs (5) 100 Alien Tech Used (0) 0 Bonus (0) 0 TOTAL SCORE: 1803 Bonus ------- None Cogmind --------- Core Integrity 0/250 Matter 275/300 Energy 160/200 System Corruption 3% Temperature Cool (0) Movement Treading (160) Location -10/Subcaves Parts ------- > --- POWER (1) -------- Subdweller Power Source > --- PROPULSION (2) --- Improved Treads Improved Treads > --- UTILITY (2) ------ Heat Sink Makeshift Light Armor Plating > --- WEAPON (2) ------- Subdweller Beam Cannon Subdweller Beam Cannon > --- INVENTORY (5) ---- Subdweller Power Source High-capacity Battery (250) Medium Matter Pod (100) Enhanced Flamer Peak State ------------ > --- POWER ------------ Subdweller Power Source > --- PROPULSION ------- Improved Treads Improved Treads > --- UTILITY ---------- Heat Sink Makeshift Light Armor Plating > --- WEAPON ----------- Subdweller Beam Cannon Subdweller Beam Cannon > --- INVENTORY -------- Improved Treads High-capacity Battery Medium Matter Pod [Rating: 15] Favorites ----------- Power Light Ion Engine Engine Light Ion Engine Power Core Light Nuclear Core Propulsion Improved Treads Treads Improved Treads Leg Aluminum Leg Utility Small Storage Unit Device Heat Sink Storage Small Storage Unit Hackware Hacking Suite Protection Light Armor Plating Weapon Subdweller Beam Cannon Energy Gun Small Laser Energy Cannon Subdweller Beam Cannon Ballistic Gun Light Assault Rifle Launcher Grenade Launcher Impact Weapon Hammer Build | -11 -10 -10 ------- Run | Yrd Mat Sub Slots Evolved . | . . . Power . | . . . Propulsion . | . . . Utility . | . . . Weapon . | . . . Parts Attached 36 | . 22 14 Power 7 | . 2 5 Engine 6 | . 1 5 Core 1 | . 1 . Reactor . | . . . Propulsion 9 | . 6 3 Treads 7 | . 4 3 Leg 2 | . 2 . Wheel . | . . . Hover . | . . . Flight . | . . . Utility 10 | . 7 3 Device 6 | . 5 1 Storage . | . . . Processor . | . . . Hackware 1 | . 1 . Protection 3 | . 1 2 Artifact . | . . . Weapon 10 | . 7 3 Energy Gun 2 | . 2 . Energy Cannon 4 | . 2 2 Ballistic Gun 1 | . 1 . Ballistic Cannon . | . . . Launcher 1 | . 1 . Special Weapon . | . . . Impact Weapon 2 | . 1 1 Slashing Weapon . | . . . Piercing Weapon . | . . . Special Melee Weapon . | . . . Unidentified Prototypes . | . . . Corrupted Parts 1 | . 1 . System Corruption 3 | . 3 . Parts Lost 6 | . 3 3 Power 1 | . 1 . Propulsion 2 | . 1 1 Utility 1 | . . 1 Weapon 2 | . 1 1 Highest Loss Streak 2 | . 1 2 To Critical Strikes . | . . . Average Slot Usage (%) 94 | . 98 92 Engine 12 | . 10 14 Core 1 | . 2 . Treads 24 | . 19 28 Leg 3 | . 7 . Device 3 | . 2 4 Storage 7 | . 14 2 Hackware 2 | . 4 . Protection 9 | . 5 13 Energy Gun 3 | . 7 . Energy Cannon 19 | . 9 27 Launcher 3 | . 6 . Impact Weapon 1 | . 2 . Naked Turns . | . . . Heaviest Build 39 | 11 17 39 Greatest Support 46 | 20 46 46 Greatest Overweight (x) . | . . . Average Overweight (x) . | . . . Largest Inventory Capacity 8 | . 8 8 Average Capacity 6 | . 8 5 Most Carried 8 | . 8 8 Average Carried 6 | . 7 5 Final Capacity 8 | 8 8 5 Final Carried 8 | 6 8 4 Class Distribution -------------------- 75% | Mutant 15% | Scavenger-Mutant 9% | Subdweller-Mutant Dominant Class ---------------- Mutant | -10/Materials Mutant | -10/Subcaves Resources | -11 -10 -10 ----------- Run | Yrd Mat Sub Matter Collected 828 | 198 414 216 Remotely . | . . . Salvage Created 1498 | . 798 700 Parts 101 | . 58 43 Haulers Intercepted 2 | . 2 . Recyclers Shooed 1 | . 1 . Parts Field Recycled . | . . . Retrieved Matter . | . . . Parts Self-Destructed 14 | . . 14 Prevented . | . . . Kills | -11 -10 -10 ------- Run | Yrd Mat Sub Combat Hostiles Destroyed 32 | . 17 15 Guns 10 | . 10 . Cannons 22 | . 7 15 Classes Destroyed 11 | . 8 3 Worker 1 | . 1 . Tunneler 1 | . 1 . Hauler 2 | . 2 . Recycler 1 | . 1 . Operator 1 | . 1 . Turret 2 | . . 2 Watcher 2 | . 2 . Swarmer 12 | . 6 6 Grunt 11 | . 11 . Artisan 2 | . . 2 Subdweller 9 | . . 9 Best Kill Streak 5 | . 3 5 Combat Bots Only 3 | . 3 3 Max Kills in Single Turn 2 | . 1 2 Gunslinging . | . . . Exploded . | . . . Melee . | . . . Uniques/NPCs Destroyed . | . . . Combat | -11 -10 -10 -------- Run | Yrd Mat Sub Hostile Shots Fired 268 | . 100 168 Missed 75 | . 30 45 Damage Taken 2134 | . 755 1379 Core 267 | . 118 149 Absorbed by Shields . | . . . Regen/Repaired (Parts) 59 | . 59 . Core Remaining (%) 100 | 100 . . Volleys Fired 164 | . 85 79 Largest 2 | . 2 2 Hottest 160 | . 105 160 Shots Fired 280 | . 133 147 Gun 104 | . 104 . Cannon 168 | . 21 147 Launcher 8 | . 8 . Special . | . . . Kinetic 8 | . 8 . Thermal 237 | . 90 147 Explosive 8 | . 8 . Electromagnetic 27 | . 27 . Robot Hit Streak 14 | . 6 14 Robot Miss Streak 7 | . 7 6 Penetration Max . | . . . Secondary Targets 1 | . 1 . Max Gunslinging Chain 1 | . 1 . Shots Hit Robots 141 | . 64 77 Core Hits 63 | . 35 28 Critical Kills . | . . . Critical Parts Destroyed . | . . . Critical Strikes 1 | . 1 . Burn 1 | . 1 . Melee Attacks . | . . . Impact . | . . . Slashing . | . . . Piercing . | . . . Sneak Attacks . | . . . Combat Hostiles . | . . . Follow-up Attacks . | . . . Damage Inflicted 2771 | . 1022 1749 Guns 683 | . 683 . Cannons 1979 | . 246 1733 Explosions 37 | . 37 . Melee . | . . . Ramming 72 | . 56 16 Kinetic 44 | . 44 . Thermal 2397 | . 664 1733 Explosive 37 | . 37 . Electromagnetic 221 | . 221 . Impact . | . . . Slashing . | . . . Piercing . | . . . Highest Corruption 3 | . 3 3 Average Corruption 3 | . 3 3 Corruption Purged . | . . . Corruption Blocked . | . . . Effects 61 | . 25 36 Message Errors 16 | . 9 7 Matter Fused 14 | . 5 9 Heat Flow Errors 11 | . 5 6 Energy Discharges 1 | . . 1 Parts Rejected 1 | . . 1 Parts Fused 3 | . 1 2 Data Loss (minor) 8 | . 3 5 Data Loss (major) 2 | . 2 . Misfires 3 | . . 3 Alerts 1 | . . 1 Weapon Failures 1 | . . 1 Overload Shots . | . . . Overflow Damage 32 | . . 32 Projectiles 32 | . . 32 Explosions . | . . . Melee . | . . . Knockbacks . | . . . Impact . | . . . Kinetic . | . . . Secondary . | . . . Self-Inflicted Damage 56 | . 56 . Shots 3 | . 3 . Rammed 12 | . 6 6 Targets Rammed 16 | . 10 6 Kicked 3 | . 3 . Crushed 1 | . 1 . Highest Temperature 292 | . 275 292 Average Temperature 80 | . 95 60 Received Heat Transfer 636 | . 219 417 Effects 4 | . 4 . Energy Bleed 1 | . 1 . Interference 3 | . 3 . Siege Activations . | . . . Robots Corrupted . | . . . Combat Hostiles . | . . . Parts Fried . | . . . Impact Corruptions . | . . . Robots Melted . | . . . Combat Hostiles . | . . . Parts Melted 10 | . 1 9 Heat Transferred 4248 | . 1547 2701 Parts Sabotaged . | . . . Parts Stolen . | . . . Parts Stripped . | . . . Power Chain Reactions . | . . . Alert | -11 -10 -10 ------- Run | Yrd Mat Sub Peak Influence 352 | . 352 . Initial . | . . . Average 169 | . 169 . Maximum Alert Level 1 | . 1 . Low Security (%) 64 | . 64 . Level 1 35 | . 35 . Level 2 . | . . . Level 3 . | . . . Level 4 . | . . . Level 5 . | . . . High Security . | . . . Max Security . | . . . Squads Dispatched 6 | . 6 . Investigation 4 | . 4 . Extermination . | . . . Reinforcement 2 | . 2 . Assault . | . . . Garrison . | . . . Intercept . | . . . Searches Triggered . | . . . Construction Impeded . | . . . Haulers Reinforced . | . . . Active Scanning Responses . | . . . Cargo Convoy Interrupts . | . . . Stealth | -11 -10 -10 --------- Run | Yrd Mat Sub Distress Signals 2 | . 2 . Communications Jammed . | . . . Distress Signals . | . . . Times Spotted 92 | . 26 66 Peak Tracking Total 5 | . 3 5 Tactical Retreats 6 | . 3 3 Traps | -11 -10 -10 ------- Run | Yrd Mat Sub Traps Triggered . | . . . Indirectly . | . . . Trap Hack Attempts . | . . . Triggered . | . . . Disarmed . | . . . Reprogrammed . | . . . Reused . | . . . Traps Extracted . | . . . Installed 1 | . . 1 Triggered . | . . . Most Traps Carried 1 | . . 1 Machines | -11 -10 -10 ---------- Run | Yrd Mat Sub Machines Disabled 5 | . 4 1 Max in Single Turn 2 | . 2 1 Machines Repaired . | . . . Machines Dismantled . | . . . Machines Sabotaged 1 | . 1 . Overloaded Fab Kills . | . . . Hacking | -11 -10 -10 --------- Run | Yrd Mat Sub Machines Accessed 8 | . 7 1 Terminals 5 | . 5 . Fabricators . | . . . Repair Stations 1 | . 1 . Recycling Units 1 | . 1 . Scanalyzers . | . . . Garrison Access . | . . . Total Hacks 40 | . 37 3 Successful 25 | . 22 3 Failed 15 | . 15 . Catastrophic . | . . . Database Lockouts . | . . . Manual 17 | . 17 . Terminals 28 | . 28 . Fabricators . | . . . Repair Stations 6 | . 6 . Recycling Units 3 | . 3 . Scanalyzers . | . . . Garrison Access . | . . . Terminal Hacks 14 | . 11 3 Record 3 | . . 3 Robot Analysis 1 | . 1 . Prototype ID Bank 4 | . 4 . Emergency Access Points 1 | . 1 . Alert Level 1 | . 1 . Unreport Threat 1 | . 1 . Locate Traps 1 | . 1 . Patrol Status 1 | . 1 . Transport Status 1 | . 1 . Fabricator Hacks . | . . . Repair Station Hacks 4 | . 4 . Scan Component 2 | . 2 . Repair 2 | . 2 . Recycling Unit Hacks 2 | . 2 . Report Inventory 1 | . 1 . Retrieve Components 1 | . 1 . Scanalyzer . | . . . Garrison Access Hacks . | . . . Unauthorized Hacks 5 | . 5 . Terminals 5 | . 5 . Botnet 3 | . 3 . Sabotage 2 | . 2 . Fabricators . | . . . Repair Stations . | . . . Recycling Units . | . . . Scanalyzers . | . . . Garrison Access . | . . . Data Cores Recovered . | . . . Used . | . . . Hacking Detections 7 | . 7 . Full Trace Events 4 | . 4 . Feedback Events . | . . . Feedback Blocked . | . . . Robot Schematics Acquired . | . . . Robots Built . | . . . Authchips . | . . . Time . | . . . Total Robot Build Rating . | . . . Part Schematics Acquired . | . . . Parts Built . | . . . Authchips . | . . . Time . | . . . Total Part Build Rating . | . . . Parts Repaired 2 | . 2 . Time 52 | . 52 . Parts Recycled . | . . . Recycled Matter . | . . . Retrieved Matter . | . . . Retrieved Components 5 | . 5 . Parts Scanalyzed . | . . . Part Schematics Acquired . | . . . Parts Damaged . | . . . Bothacking | -11 -10 -10 ------------ Run | Yrd Mat Sub Used RIF Installer . | . . . Robots Hacked . | . . . Non-combat . | . . . Combat . | . . . Robot Hacks Applied . | . . . Relay Couplers Released . | . . . Fabnet Peak Effective % . | . . . Robots Rewired . | . . . Allies Hacked . | . . . Hacks Repelled . | . . . Allies | -11 -10 -10 -------- Run | Yrd Mat Sub Total Allies . | . . . Largest Group . | . . . Highest-Rated Group . | . . . Highest-Rated Ally . | . . . Total Orders . | . . . Ally Attacks . | . . . Total Damage . | . . . Kills . | . . . Allies Corrupted . | . . . Allies Melted . | . . . Intel | -11 -10 -10 ------- Run | Yrd Mat Sub Robot Analysis Total 1 | . 1 . Derelict Logs Recovered . | . . . Drone Launches . | . . . Drone Recoveries . | . . . Exploration | -11 -10 -10 ------------- Run | Yrd Mat Sub Turns Passed 3713 | . 1748 1965 Spaces Moved 1987 | 1 951 1035 Core . | . . . Treads 1715 | . 680 1035 Legs 272 | 1 271 . Wheels . | . . . Hover . | . . . Flight . | . . . Fastest Speed 120 | 120 120 160 Average Speed 154 | 120 148 160 Slowest Speed 160 | 120 160 160 Overloaded Moves . | . . . Propulsion Burnouts . | . . . Robots Hopped . | . . . Cave-ins Triggered . | . . . Exploration Rate (%) 48 | 1 96 48 Regions Visited 2 Branch Regions 1 Pre-discovered Areas 1 | . . 1 Known Exits Taken . | . . . Unknown Exits Taken 2 | 1 1 . Scrap Searched 5 | . . 5 Spaces Dug 5 | . 5 . Terrain Destroyed 50 | . 40 10 Melee . | . . . Projectile 10 | . . 10 AOE 40 | . 40 . Terrain Rammed . | . . . Walls Destroyed . | . . . Machines Disabled . | . . . Actions | -11 -10 -10 --------- Run | Yrd Mat Sub Total 2355 | . 1155 1200 Wait 90 | . 54 36 Move 1985 | . 950 1035 Hop . | . . . Pick Up 15 | . 11 4 Fast Attach 17 | . 12 5 Attach 6 | . 1 5 Detach 4 | . 3 1 Swap 13 | . 9 4 Drop 29 | . 20 9 Fire 164 | . 85 79 Melee . | . . . Ram . | . . . Kick 3 | . 3 . Crush 13 | . 7 6 Escape Stasis . | . . . Rewire 8 | . . 8 Trap 1 | . . 1 Miscellaneous 7 | . . 7 Route ------- -11/Scrapyard -10/Materials (discovered 5 exits: [*Mat x3] / [*Min] / *Sub) -10/Subcaves (discovered 3 exits: *Mat x2 / *Rec) History --------- Turn | Location | Event 1 | -11/Scrapyard | Discovered new exit (range 0) 1 | -11/Scrapyard | Entered Materials 284 | -10/Materials | Discovered new exit (range 10) 572 | -10/Materials | Discovered new exit (range 13) 702 | -10/Materials | Discovered new exit (range 10) 794 | -10/Materials | Build established: Mutant 972 | -10/Materials | Discovered new exit (range 15) 1313 | -10/Materials | Repaired Beam Cannon 1341 | -10/Materials | Repaired Med. Matter Pod 1732 | -10/Materials | Discovered new exit (range 11) 1749 | -10/Materials | Entered Subcaves 1762 | -10/Subcaves | Shifting Twisted Machinery released Sub. Monowheel 1767 | -10/Subcaves | Shifting Twisted Machinery released Sub. Power Source 1840 | -10/Subcaves | Core integrity fell below 50% 1859 | -10/Subcaves | Shifting Twisted Machinery released Sub. Power Source 2243 | -10/Subcaves | Learned location of Zion (-6) 2243 | -10/Subcaves | Met a Zionite searching for "candidates" 2265 | -10/Subcaves | A swath of the cavern ceiling suddenly collapsed 2471 | -10/Subcaves | Ambushed by angry Subdweller bent on revenge 2668 | -10/Subcaves | Ambushed by Subdwellers from Twisted Machinery 2731 | -10/Subcaves | Shifting Twisted Machinery released Mak. Power Source 2773 | -10/Subcaves | Visited Clippyterm 2778 | -10/Subcaves | Identified exit to Materials 2778 | -10/Subcaves | Identified exit to Recycling 2843 | -10/Subcaves | A swath of the cavern ceiling suddenly collapsed 2943 | -10/Subcaves | Shifting Twisted Machinery released Mak. Axe 2951 | -10/Subcaves | Build established: Subdweller-Mutant 3429 | -10/Subcaves | Build established: Mutant 3693 | -10/Subcaves | Disturbed a concealed Subdweller 3700 | -10/Subcaves | Core integrity fell below 20% 3714 | -10/Subcaves | Destroyed by 9X-WW6(R) with Subdweller Machine Gun Last Messages --------------- 03142_ Dropped Imp. Treads. 03147_ Acquired Sub. Power Source. 03156_ System corrupted: IFF burst signal emitted. 03172_ System corrupted: Component data lost. 03213_ Subatomizers dissect the Sub. Laser. 03247_ System corrupted: Component data lost. 03274_ YDHAD HO6B 2SFC#Z 0QVRMLADJSOK 03291_ Subatomizers dissect the Disposable Heat Sink. 03420_ System corrupted: Heat flow error (+275). 03472_ Sub. Power Source shoots sparks and powers down. 03480_ System corrupted: Heat flow error (+164). 03481_ Dropped Broken Sub. Power Source. 03482_ Acquired Broken Sub. Power Source. 03508_ System corrupted: Matter fused (-9). 03597_ System corrupted: Matter fused (-6). 03654_ System corrupted: Energy discharge (-62). 03693_ EH-8GT(R) angrily emerges from the Twisted Machinery. 03698_ EH-8GT(R): "SUBSUB!" 03704_ Dropped Piercing Trap. 03704_ Installed Piercing Trap. Map ----- +----------------------------------------------------+ | ?????????????????????#" ### ###### ##??? | | ????????????????????## #?#### " ##???? | | ??????????????####??# #???# ##???# | | ??????????????# ??## #???# ##### | | ??????????????# ??# ##??## | | ??????????????# ??# ###?## | | ??????????????# ??# ##?# #### | | ??????????????# #??## #?# ##??# | | ??????????????# #???## ### ##???? | | ??????????????# #??### # ## #####???? | | ??????????????# #?## # #?# ##??? | | ??????????????# ### # # ### ###? | | ??????????????# ## ## ## | | ??????????????## ### # | | ???????????????# ## ## ##?# # | | ???????????????# ##########?# | | ???????????????# ###????????# ## | | ???????????????# #?????#??####### | | ?????#####?????# ##### ##???????? | | ??????"" "#????# ## #????????# # | | ??????? #??## ## #?????????#### | | ????????# " ??# #???????????? | | ?????????" ###" #### ????????????? | | ??????????# #" ##???? ????????????? | | ??????????# #R #???????????????????? | | ??????????# #@ ##??????????????????? | | ??????????# #" ^ #??????????????????? | | ??????????## ## #??????????????????? | | ???????????" "# #######??????????????????? | | ??????????# &"## #????????????????????????? | | ??????????# $"## #????????????????????????? | | ??????????#""### ????????????????????????? | | ??????????####? ????????????????????????? | | ??????????????? ???????????????????????? | | ??????????????? ???????????????????????? | | ??????????????# ??????????????????????? | | ??????????????# ##??????????????????????? | | ???????????????# #???????????????????????? | | ????????????????###???????????????????????? | | ??????????????????????????????????????????? | | ??????????????????????????????????????????? | | ??????????????????????????????????????????? | | ??????????????????????????????????????????? | | ??????????????????????????????????????????? | | ??????????????????????????????????????????? | | ??????????????????????????????????????????? | | ??????????????????????????????????????????? | | ??????????????????????????????????????????? | | ??????????????????????????????????????????? | | ??????????????????????????????????????????? | +----------------------------------------------------+ Best States ------------- Heat Dissipation 35 Energy Generation 15 Energy Capacity 250 Matter Stores 300 Matter Capacity 300 Sight Range 16 Terrain Scan Density 10 Armor Coverage 800 Evasion (%) 55 Recoil Reduction 2 Offensive Hacking 10 Item Schematics ----------------- None Robot Schematics ------------------ None Fabricated ------------ Nothing Alien Tech Used ----------------- None Achievements -------------- None Challenges ------------ None Game ------ Seed GammaCargoBeamcaster Manual? 0 Play Time 00:18:34 Cumulative 788.8 hours Start 2024.07.09 @ 00:18:59 End 2024.07.09 @ 00:31:49 Sessions 1 Manual Loads 0 Difficulty Rogue Special Mode None Game No. 913 Rogue 635 Adventurer 124 Explorer 154 Win Type - Total 31 Types 25/0/4/1/0/0/0/1/0 Lore% 84 Gallery% 92 Achievement% 77 Wizard Run 0 Options --------- Layout 0 ASCII 0 Keyboard 1 Movement Numpad Keybinds 0 Fullscreen 2 Font 18/Smallcaps Map View 76x50 Zoom Use 0% Tactical HUD 1 Map Filters NONE Filters NONE Steam 1 RUN: 9881445f-341b-4ba0-8b9b-046309854872